Cogmind - Beta 10.1 @@@ ROGUE MODE // 2020.09.21 @ 22:38:28 Player: DBrickShaw Result: Destroyed by Executioner with Helical Railgun Performance ------------- Evolutions (6) 3000 Regions Visited (10) 2000 Robots Destroyed (109) 545 Value Destroyed (3910) 3910 Prototype IDs (11) 220 Alien Tech Used (0) 0 Bonus (2729) 2729 TOTAL SCORE: 12404 Bonus ------- High Alert Combat Kills 108 Follower Combat Kills 419 Met Warlord at Base 500 MAIN.C Attacked Warlord 500 Warlord Defense Kill 1214 Friendly Fire -12 Cogmind --------- Core Integrity 0/1150 Matter 76/300 Energy 98/100 System Corruption 22% Temperature Cool (0) Movement Core (50) Location -4/Warlord Parts ------- > --- POWER (3) -------- (None) > --- PROPULSION (4) --- (None) > --- UTILITY (7) ------ (None) > --- WEAPON (5) ------- (None) > --- INVENTORY (4) ---- Large Storage Unit Energy Well (495) Signal Generator Peak State ------------ > --- POWER ------------ Micro Fission Core Light Antimatter Reactor Particle Reactor > --- PROPULSION ------- Compact Wheel Compact Wheel Armored Huge Wheel > --- UTILITY ---------- Advanced Heat Sink Large Storage Unit Energy Well Enhanced Optical Array Core Analyzer Core Analyzer Core Analyzer > --- WEAPON ----------- Phase Gun Matter Neutralizer Hypervelocity Mass Driver Hypervelocity Mass Driver Hypervelocity Mass Driver > --- INVENTORY -------- Neutrino Core Myomer Leg Advanced Heat Sink Lightning Gun Variable Charge Gun Heavy Phase Cannon Matter Neutralizer Missile Launcher Missile Launcher Signal Generator [Rating: 98] Favorites ----------- Power Nuclear Core Engine Improved Ion Engine Power Core Nuclear Core Reactor Light Antimatter Reactor Propulsion Compact Wheel Treads Improved Treads Leg Myomer Leg Wheel Compact Wheel Utility Large Storage Unit Device Improved Heat Sink Storage Large Storage Unit Processor Core Analyzer Protection Heavy Armor Plating Weapon Hypervelocity Mass Driver Energy Gun Heavy Particle Gun Energy Cannon Heavy Phase Cannon Ballistic Gun Enhanced Autogun Ballistic Cannon Hypervelocity Mass Driver Launcher EMP Blaster Slashing Weapon Mining Claw Build | -11 -10 -9 -8 -8 -7 -6 -5 -4 -4 -4 ------- Run | Scr Mat Mat Mat Sto Fac Fac Fac Fac Upp War Slots Evolved 12 | . . 2 2 . 2 2 2 2 . . Power 2 | . . . 1 . . . 1 . . . Propulsion 2 | . . 1 . . . . 1 . . . Utility 5 | . . . 1 . 2 1 . 1 . . Weapon 3 | . . 1 . . . 1 . 1 . . Parts Attached 176 | 8 21 25 18 35 1 13 9 17 . 29 Power 26 | 1 5 4 3 4 . 1 3 1 . 4 Engine 14 | 1 5 3 2 1 . . 1 . . 1 Core 10 | . . 1 1 3 . 1 2 1 . 1 Reactor 2 | . . . . . . . . . . 2 Propulsion 35 | 2 2 6 5 9 . 1 2 6 . 2 Treads 9 | . . . 1 5 . 1 2 . . . Leg 4 | . . . . . . . . 3 . 1 Wheel 22 | 2 2 6 4 4 . . . 3 . 1 Hover . | . . . . . . . . . . . Flight . | . . . . . . . . . . . Utility 25 | 3 3 . 2 4 1 4 1 3 . 4 Device 13 | 1 1 . 1 3 . 3 1 2 . 1 Storage 5 | 2 1 . . 1 . . . 1 . . Processor 5 | . 1 . . . . 1 . . . 3 Hackware . | . . . . . . . . . . . Protection 2 | . . . 1 . 1 . . . . . Artifact . | . . . . . . . . . . . Weapon 90 | 2 11 15 8 18 . 7 3 7 . 19 Energy Gun 33 | 1 . 5 1 10 . 2 2 4 . 8 Energy Cannon 12 | . . 2 2 1 . . 1 2 . 4 Ballistic Gun 24 | 1 10 4 2 3 . 4 . . . . Ballistic Cannon 3 | . . . . . . . . 1 . 2 Launcher 16 | . . 4 2 4 . 1 . . . 5 Special Weapon . | . . . . . . . . . . . Impact Weapon . | . . . . . . . . . . . Slashing Weapon 2 | . 1 . 1 . . . . . . . Piercing Weapon . | . . . . . . . . . . . Special Melee Weapon . | . . . . . . . . . . . Unidentified Prototypes 4 | . . 2 . 2 . . . . . . Parts Lost 62 | . 7 4 7 3 . . . 9 1 31 Power 12 | . 2 . . 2 . . . 1 . 7 Propulsion 14 | . 1 2 2 . . . . 4 . 5 Utility 9 | . 1 . 1 . . . . 1 1 5 Weapon 27 | . 3 2 4 1 . . . 3 . 14 Highest Loss Streak 21 | . 5 3 3 1 . . . 6 1 21 Average Slot Usage (%) 94 | . 98 99 98 99 92 92 94 93 83 87 Engine 5 | . 14 10 11 5 7 6 5 1 . . Core 8 | . . . 6 11 7 6 11 13 15 11 Treads 9 | . . . 1 18 23 20 23 9 . . Wheel 12 | . 28 33 24 8 . . . 3 15 14 Device 8 | . 10 . 3 8 7 12 11 18 10 5 Storage 9 | . 14 11 9 9 7 6 5 8 10 10 Processor 9 | . 3 11 9 9 7 6 5 5 5 18 Protection 1 | . . . 5 . 7 6 5 1 . . Energy Gun 9 | . 2 5 5 15 15 7 8 11 10 7 Energy Cannon 2 | . . 6 4 . . . . 3 5 4 Ballistic Gun 11 | . 24 19 16 10 7 18 13 8 5 2 Ballistic Cannon 2 | . . . . . . . . 1 5 8 Naked Turns 3 | . . . . . . . . . . 3 Heaviest Build 110 | 13 26 35 41 43 53 65 74 82 80 110 Greatest Support 91 | 26 32 48 42 68 68 68 91 91 60 60 Greatest Overweight (x) 5 | . . . 1 3 . . 1 5 1 3 Average Overweight (x) . | . . . . 1 . . . 1 1 . Largest Inventory Capacity 10 | 8 10 10 10 10 10 10 10 10 10 10 Average Capacity 9 | 5 7 10 10 10 10 10 10 10 10 9 Most Carried 10 | 6 10 10 10 10 10 10 10 10 10 10 Average Carried 8 | 3 6 9 9 9 8 9 9 7 9 8 Final Capacity 10 | 6 10 10 10 10 10 10 10 10 10 4 Final Carried 10 | 5 10 10 10 10 10 10 10 9 9 3 Class Distribution -------------------- 32% | Skirmisher 14% | Scavenger-Gunner 10% | Mutant 9% | Scavenger-Skirmisher 9% | Tank 8% | Commander-Tank 5% | Gunner 4% | Generator-Skirmisher Dominant Class ---------------- Mutant | -10/Materials Skirmisher | -9/Materials Tank | -8/Materials Skirmisher | -8/Storage Commander-Tank | -7/Factory Tank | -6/Factory Skirmisher | -5/Factory Generator-Skirmisher | -4/Factory Scavenger-Gunner | -4/Upper Caves Scavenger-Gunner | -4/Warlord Resources | -11 -10 -9 -8 -8 -7 -6 -5 -4 -4 -4 ----------- Run | Scr Mat Mat Mat Sto Fac Fac Fac Fac Upp War Matter Collected 3124 | 291 148 630 315 660 . 188 193 242 36 421 Remotely . | . . . . . . . . . . . Salvage Created 4973 | 116 314 1017 468 1324 . 219 266 667 137 445 Parts 260 | 6 14 76 34 62 . 17 14 18 4 15 Haulers Intercepted 6 | . . 1 . 5 . . . . . . Recyclers Shooed 3 | . 1 . 1 1 . . . . . . Parts Field Recycled . | . . . . . . . . . . . Retrieved Matter . | . . . . . . . . . . . Parts Self-Destructed 139 | . . . . . . . . . 4 135 Prevented 39 | . . . . . . . . . . 39 Kills | -11 -10 -9 -8 -8 -7 -6 -5 -4 -4 -4 ------- Run | Scr Mat Mat Mat Sto Fac Fac Fac Fac Upp War Combat Hostiles Destroyed 82 | . 6 24 10 20 . 3 6 3 2 8 Guns 44 | . 6 7 4 15 . 3 6 1 . 2 Cannons 13 | . . 3 2 . . . . 2 2 4 AOE 22 | . . 12 4 5 . . . . . 1 Classes Destroyed 16 | 2 2 5 1 1 . 1 . . . 4 Worker 4 | . 1 2 . 1 . . . . . . Builder 6 | . . 4 1 1 . . . . . . Tunneler 1 | 1 . . . . . . . . . . Hauler 6 | . . 1 . 5 . . . . . . Recycler 6 | 1 . . . 2 . . . 3 . . Operator 2 | . . 1 . . . 1 . . . . Watcher 2 | . . . 1 1 . . . . . . Swarmer 17 | . . 9 3 . . . 4 . . 1 Grunt 39 | . 6 12 6 11 . . 1 . . 3 Brawler 1 | . . . . 1 . . . . . . Duelist 1 | . . . . . . . . . . 1 Sentry 15 | . . 3 1 8 . 1 1 1 . . Specialist 1 | . . . . . . . . . . 1 Hunter 6 | . . . . . . 2 . 2 2 . Striker 1 | . . . . . . . . . . 1 Executioner 1 | . . . . . . . . . . 1 Best Kill Streak 11 | 1 3 11 5 7 . 2 4 3 2 7 Combat Bots Only 7 | . 3 7 5 5 . 2 4 2 2 7 Max Kills in Single Turn 4 | 1 1 4 2 2 . 1 1 1 1 2 Gunslinging . | . . . . . . . . . . . Exploded 3 | . . 3 2 2 . . . . . 1 Melee . | . . . . . . . . . . . Uniques/NPCs Destroyed . | . . . . . . . . . . . Combat | -11 -10 -9 -8 -8 -7 -6 -5 -4 -4 -4 -------- Run | Scr Mat Mat Mat Sto Fac Fac Fac Fac Upp War Damage Taken 9022 | . 689 972 656 796 . 314 352 1156 207 3880 Core 1653 | . 72 108 130 88 . 47 43 148 . 1017 Absorbed by Shields 302 | . . . . . . 99 . 203 . . Core Remaining (%) 84 | 100 71 73 . 60 100 94 95 . . . Volleys Fired 269 | 11 43 58 33 63 . 8 9 14 3 27 Largest 5 | 2 2 3 3 3 . 4 4 5 5 5 Hottest 391 | 70 70 124 143 155 . 161 200 350 350 391 Shots Fired 729 | 22 84 132 73 176 . 26 36 70 15 95 Gun 562 | 22 84 91 49 169 . 24 36 55 9 23 Cannon 122 | . . 20 14 2 . . . 15 6 65 Launcher 45 | . . 21 10 5 . 2 . . . 7 Special . | . . . . . . . . . . . Kinetic 393 | 11 74 71 40 69 . 18 23 26 6 55 Thermal 225 | 11 10 7 14 95 . 6 9 32 9 32 Explosive 12 | . . . . 5 . . . . . 7 Electromagnetic 99 | . . 54 19 7 . 2 4 12 . 1 Robot Hit Streak 15 | 7 11 12 6 13 . 15 9 10 12 5 Robot Miss Streak 9 | 1 2 4 2 8 . 1 2 5 2 9 Penetration Max 1 | . . . . . . . . 1 1 1 Secondary Targets 2 | . . 1 . . . 1 . . . . Max Gunslinging Chain 1 | . . 1 . . . 1 . . . . Shots Hit Robots 408 | 16 61 77 44 95 . 15 15 34 9 42 Core Hits 212 | 5 20 41 24 47 . 7 9 17 5 37 Critical Hits 31 | . . 1 1 1 . 1 3 1 2 21 Critical Kills 10 | . . . . 1 . 1 3 . 1 4 Critical Parts Destroyed 20 | . . 1 . . . . . 1 1 17 Melee Attacks 1 | . 1 . . . . . . . . . Impact . | . . . . . . . . . . . Slashing 1 | . 1 . . . . . . . . . Piercing . | . . . . . . . . . . . Sneak Attacks . | . . . . . . . . . . . Combat Hostiles . | . . . . . . . . . . . Follow-up Attacks . | . . . . . . . . . . . Damage Inflicted 9104 | 167 512 1747 955 2108 . 274 381 943 209 1808 Guns 5065 | 167 512 680 443 1553 . 229 381 647 90 363 Cannons 1843 | . . 394 250 . . . . 296 119 784 Explosions 2185 | . . 673 262 555 . 45 . . . 650 Melee . | . . . . . . . . . . . Ramming 11 | . . . . . . . . . . 11 Kinetic 2974 | 81 438 408 280 485 . 114 168 242 104 654 Thermal 3169 | 86 74 250 313 1023 . 115 171 539 105 493 Explosive 1176 | . . . . 526 . . . . . 650 Electromagnetic 1774 | . . 1089 362 74 . 45 42 162 . . Impact . | . . . . . . . . . . . Slashing . | . . . . . . . . . . . Piercing . | . . . . . . . . . . . Highest Corruption 22 | . . 2 . . . . . . . 22 Average Corruption 1 | . . 1 . . . . . . . 7 Corruption Purged . | . . . . . . . . . . . Effects 1 | . . 1 . . . . . . . . Targeting Errors 1 | . . 1 . . . . . . . . Overload Shots . | . . . . . . . . . . . Overflow Damage 89 | . . . . . . . . 32 . 57 Projectiles 62 | . . . . . . . . 32 . 30 Explosions 27 | . . . . . . . . . . 27 Melee . | . . . . . . . . . . . Knockbacks 4 | . . . . . . . . . . 4 Impact . | . . . . . . . . . . . Kinetic 4 | . . . . . . . . . . 4 Secondary . | . . . . . . . . . . . Self-Inflicted Damage 148 | . . 29 24 37 . . . . . 58 Shots 8 | . . 3 2 1 . . . . . 2 Rammed 4 | . . . . . . . . . . 4 Targets Rammed 4 | . . . . . . . . . . 4 Kicked . | . . . . . . . . . . . Crushed . | . . . . . . . . . . . Highest Temperature 616 | 90 265 169 376 395 . 252 474 616 587 610 Average Temperature 125 | 33 72 58 150 89 . 97 206 209 275 201 Received Heat Transfer 1544 | . 390 342 288 306 . 44 45 24 9 96 Effects 48 | . . . 5 7 . . 10 7 11 8 Shutdowns 19 | . . . 2 2 . . 3 3 4 5 Energy Bleed 4 | . . . . 1 . . 1 1 1 . Interference 8 | . . . 2 . . . . . 5 1 Matter Decay 6 | . . . . 3 . . 1 1 . 1 Short Circuit 4 | . . . . . . . 1 1 1 1 Damage (minor) 2 | . . . 1 1 . . . . . . Damage (major) 4 | . . . . . . . 4 . . . Damage (core) 1 | . . . . . . . . 1 . . Siege Activations . | . . . . . . . . . . . Robots Corrupted 2 | . . 2 . . . . . . . . Combat Hostiles 2 | . . 2 . . . . . . . . Parts Fried 6 | . . 5 . . . . . 1 . . Impact Corruptions . | . . . . . . . . . . . Robots Melted 1 | . . . . . . . . . . 1 Combat Hostiles 1 | . . . . . . . . . . 1 Parts Melted 8 | . . . . 2 . . 1 2 2 1 Heat Transferred 5169 | 259 222 298 420 1974 . 185 259 766 148 638 Parts Sabotaged . | . . . . . . . . . . . Parts Stolen . | . . . . . . . . . . . Parts Stripped . | . . . . . . . . . . . Power Chain Reactions 8 | . . 4 3 1 . . . . . . Missiles Intercepted . | . . . . . . . . . . . Alert | -11 -10 -9 -8 -8 -7 -6 -5 -4 -4 -4 ------- Run | Scr Mat Mat Mat Sto Fac Fac Fac Fac Upp War Peak Influence 566 | 10 136 566 419 458 164 283 181 76 . . Initial 238 | . 6 . 238 168 164 79 7 . . . Average 145 | 4 74 272 288 162 164 101 74 38 . . Maximum Alert Level 2 | . . 2 2 2 . 1 . . . . Low Security (%) 70 | 100 100 45 . 61 100 78 100 100 . . Level 1 23 | . . 22 97 30 . 21 . . . . Level 2 6 | . . 31 2 7 . . . . . . Level 3 . | . . . . . . . . . . . Level 4 . | . . . . . . . . . . . Level 5 . | . . . . . . . . . . . High Security . | . . . . . . . . . . . Max Security . | . . . . . . . . . . . Squads Dispatched 20 | . 1 5 3 6 . 4 . 1 . . Investigation 3 | . . 1 1 1 . . . . . . Extermination 1 | . . . . . . 1 . . . . Reinforcement 10 | . 1 4 2 2 . . . 1 . . Assault . | . . . . . . . . . . . Garrison 6 | . . . . 3 . 3 . . . . Intercept . | . . . . . . . . . . . Construction Impeded 1 | . . 1 . . . . . . . . Haulers Reinforced . | . . . . . . . . . . . Stealth | -11 -10 -9 -8 -8 -7 -6 -5 -4 -4 -4 --------- Run | Scr Mat Mat Mat Sto Fac Fac Fac Fac Upp War Distress Signals 3 | . 1 1 . 1 . . . . . . Communications Jammed . | . . . . . . . . . . . Distress Signals . | . . . . . . . . . . . Times Spotted 174 | . 12 33 21 36 . 10 6 4 3 49 Peak Tracking Total 9 | . 6 7 5 6 . 4 4 2 2 9 Tactical Retreats 13 | . 2 2 1 3 . . . . . 5 Traps | -11 -10 -9 -8 -8 -7 -6 -5 -4 -4 -4 ------- Run | Scr Mat Mat Mat Sto Fac Fac Fac Fac Upp War Traps Triggered 6 | . 2 2 1 1 . . . . . . Indirectly . | . . . . . . . . . . . Trap Hack Attempts . | . . . . . . . . . . . Triggered . | . . . . . . . . . . . Disarmed . | . . . . . . . . . . . Reprogrammed . | . . . . . . . . . . . Reused . | . . . . . . . . . . . Traps Extracted . | . . . . . . . . . . . Installed . | . . . . . . . . . . . Triggered 34 | . . . . . . . . . . 34 Machines | -11 -10 -9 -8 -8 -7 -6 -5 -4 -4 -4 ---------- Run | Scr Mat Mat Mat Sto Fac Fac Fac Fac Upp War Machines Disabled 17 | . . 6 1 6 . 1 2 1 . . Max in Single Turn 2 | . . 2 1 1 . 1 1 1 . . Machines Sabotaged . | . . . . . . . . . . . Garrisons Compromised . | . . . . . . . . . . . Overloaded Fab Kills . | . . . . . . . . . . . Fab Network Shutdowns . | . . . . . . . . . . . Hacking | -11 -10 -9 -8 -8 -7 -6 -5 -4 -4 -4 --------- Run | Scr Mat Mat Mat Sto Fac Fac Fac Fac Upp War Machines Accessed 23 | . . 2 1 7 1 2 . . . 10 Terminals 11 | . . 2 1 6 . 2 . . . . Fabricators . | . . . . . . . . . . . Repair Stations 1 | . . . . 1 . . . . . . Recycling Units 1 | . . . . . 1 . . . . . Scanalyzers . | . . . . . . . . . . . Garrison Access . | . . . . . . . . . . . Total Hacks 46 | . . 5 3 17 2 6 . . . 13 Successful 30 | . . 2 3 8 1 3 . . . 13 Failed 16 | . . 3 . 9 1 3 . . . . Catastrophic 7 | . . 1 . 5 . 1 . . . . Database Lockouts . | . . . . . . . . . . . Manual 17 | . . 3 . 9 . 4 . . . 1 Terminals 29 | . . 5 3 15 . 6 . . . . Fabricators . | . . . . . . . . . . . Repair Stations 2 | . . . . 2 . . . . . . Recycling Units 2 | . . . . . 2 . . . . . Scanalyzers . | . . . . . . . . . . . Garrison Access . | . . . . . . . . . . . Terminal Hacks 27 | . . 2 3 6 . 3 . . . 13 Record 12 | . . . . . . . . . . 12 Prototype ID Bank 3 | . . 2 . . . 1 . . . . Open Door 2 | . . . . 1 . . . . . 1 Emergency Access Points 1 | . . . 1 . . . . . . . Alert Level 2 | . . . 1 1 . . . . . . Unreport Threat 7 | . . . 1 4 . 2 . . . . Fabricator Hacks . | . . . . . . . . . . . Repair Station Hacks 2 | . . . . 2 . . . . . . Scan Component 1 | . . . . 1 . . . . . . Repair 1 | . . . . 1 . . . . . . Recycling Unit Hacks 1 | . . . . . 1 . . . . . Retrieve Components 1 | . . . . . 1 . . . . . Scanalyzer . | . . . . . . . . . . . Garrison Access Hacks . | . . . . . . . . . . . Unauthorized Hacks . | . . . . . . . . . . . Terminals . | . . . . . . . . . . . Fabricators . | . . . . . . . . . . . Repair Stations . | . . . . . . . . . . . Recycling Units . | . . . . . . . . . . . Scanalyzers . | . . . . . . . . . . . Garrison Access . | . . . . . . . . . . . Data Cores Recovered 1 | . . . . . . 1 . . . . Used . | . . . . . . . . . . . Hacking Detections 12 | . . 2 1 7 . 2 . . . . Full Trace Events 2 | . . 1 . 1 . . . . . . Feedback Events . | . . . . . . . . . . . Feedback Blocked . | . . . . . . . . . . . Robot Schematics Acquired . | . . . . . . . . . . . Robots Built . | . . . . . . . . . . . Matter . | . . . . . . . . . . . Time . | . . . . . . . . . . . Total Robot Build Rating . | . . . . . . . . . . . Part Schematics Acquired . | . . . . . . . . . . . Parts Built . | . . . . . . . . . . . Matter . | . . . . . . . . . . . Time . | . . . . . . . . . . . Total Part Build Rating . | . . . . . . . . . . . Parts Repaired 1 | . . . . 1 . . . . . . Time 16 | . . . . 16 . . . . . . Parts Recycled . | . . . . . . . . . . . Recycled Matter . | . . . . . . . . . . . Retrieved Matter . | . . . . . . . . . . . Retrieved Components 2 | . . . . . 2 . . . . . Parts Scanalyzed . | . . . . . . . . . . . Part Schematics Acquired . | . . . . . . . . . . . Parts Damaged . | . . . . . . . . . . . Bothacking | -11 -10 -9 -8 -8 -7 -6 -5 -4 -4 -4 ------------ Run | Scr Mat Mat Mat Sto Fac Fac Fac Fac Upp War Used RIF Installer . | . . . . . . . . . . . Robots Hacked . | . . . . . . . . . . . Non-combat . | . . . . . . . . . . . Combat . | . . . . . . . . . . . Robot Hacks Applied . | . . . . . . . . . . . Relay Couplers Released . | . . . . . . . . . . . Robots Rewired 1 | . . . . 1 . . . . . . Allies Hacked . | . . . . . . . . . . . Hacks Repelled . | . . . . . . . . . . . Allies | -11 -10 -9 -8 -8 -7 -6 -5 -4 -4 -4 -------- Run | Scr Mat Mat Mat Sto Fac Fac Fac Fac Upp War Total Allies 10 | . . . . 10 . . . . . . Largest Group 10 | . . . . 10 7 7 . . . . Highest-Rated Group 173 | . . . . 173 125 125 . . . . Highest-Rated Ally 29 | . . . . 29 29 29 . . . . Total Orders 4 | . . . . 4 . . . . . . ROAM 2 | . . . . 2 . . . . . . FOLLOW 1 | . . . . 1 . . . . . . EXPLORE 1 | . . . . 1 . . . . . . Ally Attacks 120 | . . . . 60 . 60 . . . . Total Damage 1492 | . . . . 682 . 810 . . . . Kills 18 | . . . . 10 . 8 . . . . Allies Corrupted . | . . . . . . . . . . . Allies Melted 1 | . . . . . . . . . . 1 Intel | -11 -10 -9 -8 -8 -7 -6 -5 -4 -4 -4 ------- Run | Scr Mat Mat Mat Sto Fac Fac Fac Fac Upp War Robot Analysis Total . | . . . . . . . . . . . Derelict Logs Recovered . | . . . . . . . . . . . Drone Launches 16 | . . . . 16 . . . . . . Drone Recoveries 2 | . . . . 2 . . . . . . Exploration | -11 -10 -9 -8 -8 -7 -6 -5 -4 -4 -4 ------------- Run | Scr Mat Mat Mat Sto Fac Fac Fac Fac Upp War Turns Passed 6615 | 126 477 597 394 1436 175 861 517 328 154 1550 Spaces Moved 4110 | 84 309 391 257 810 109 523 300 152 117 1058 Core 8 | 1 . . . . . . . . . 7 Treads 1328 | . . . . 298 109 523 300 98 . . Legs 7 | . . . . . . . . 7 . . Wheels 2767 | 83 309 391 257 512 . . . 47 117 1051 Hover . | . . . . . . . . . . . Flight . | . . . . . . . . . . . Fastest Speed 50 | 50 90 93 93 90 155 155 156 110 110 50 Average Speed 120 | 89 96 96 96 122 155 155 156 160 110 109 Slowest Speed 220 | 100 100 100 100 155 155 155 180 220 110 130 Overloaded Moves . | . . . . . . . . . . . Propulsion Burnouts . | . . . . . . . . . . . Robots Hopped . | . . . . . . . . . . . Cave-ins Triggered . | . . . . . . . . . . . Exploration Rate (%) 31 | 3 35 53 31 87 3 17 8 4 23 79 Regions Visited 10 Branch Regions 3 Pre-discovered Areas . | . . . . . . . . . . . Known Exits Taken . | . . . . . . . . . . . Unknown Exits Taken 10 | 1 1 1 1 1 1 1 1 1 1 . Scrap Searched . | . . . . . . . . . . . Spaces Dug 1 | . 1 . . . . . . . . . Terrain Destroyed 130 | . 1 10 12 22 . . 1 1 . 83 Melee 1 | . 1 . . . . . . . . . Projectile 14 | . . . 4 . . . 1 1 . 8 AOE 115 | . . 10 8 22 . . . . . 75 Terrain Rammed . | . . . . . . . . . . . Walls Destroyed . | . . . . . . . . . . . Machines Disabled . | . . . . . . . . . . . Actions | -11 -10 -9 -8 -8 -7 -6 -5 -4 -4 -4 --------- Run | Scr Mat Mat Mat Sto Fac Fac Fac Fac Upp War Total 5239 | 111 416 510 344 1137 116 563 331 201 135 1375 Wait 505 | 2 22 5 27 173 3 2 6 3 14 248 Move 4100 | 83 308 390 256 809 108 522 299 151 116 1058 Hop . | . . . . . . . . . . . Pick Up 71 | 5 11 14 4 13 3 6 2 9 . 4 Fast Attach 52 | 8 10 2 3 12 . 2 2 5 . 8 Attach 49 | . 4 7 6 7 1 1 2 9 . 12 Detach 9 | 1 . . 1 2 . 1 . . 1 3 Swap 75 | . 7 16 9 16 . 10 5 3 . 9 Drop 92 | 1 10 18 5 30 1 11 6 7 1 2 Fire 269 | 11 43 58 33 63 . 8 9 14 3 27 Melee 1 | . 1 . . . . . . . . . Ram 4 | . . . . . . . . . . 4 Kick . | . . . . . . . . . . . Crush . | . . . . . . . . . . . Escape Stasis . | . . . . . . . . . . . Rewire 5 | . . . . 5 . . . . . . Trap . | . . . . . . . . . . . Miscellaneous 7 | . . . . 7 . . . . . . Route ------- -11/Scrapyard -10/Materials -9/Materials -8/Materials (discovered 2 exits: *Fac / *Sto) -8/Storage -7/Factory -6/Factory -5/Factory -4/Factory -4/Upper Caves -4/Warlord History --------- Turn | Location | Event 34 | -11/Scrapyard | Discovered new exit (range 14) 127 | -11/Scrapyard | Entered Materials 344 | -10/Materials | Build established: Mutant 348 | -10/Materials | Lost 5 parts (1p1n1u2w) 370 | -10/Materials | Discovered new exit (range 6) 604 | -10/Materials | Entered another Materials area 604 | -9/Materials | Evolved 2 slots: Propulsion x1, Weapon x1 959 | -9/Materials | Build established: Skirmisher 968 | -9/Materials | Lost 3 parts (1n2w) 974 | -9/Materials | Destroyed 7 combat bots 1147 | -9/Materials | Discovered new exit (range 17) 1201 | -9/Materials | Entered another Materials area 1201 | -8/Materials | Evolved 2 slots: Power x1, Utility x1 1493 | -8/Materials | Discovered new exit (range 16) 1550 | -8/Materials | Lost 3 parts (2n1w) 1591 | -8/Materials | Discovered new exit (range 5) 1595 | -8/Materials | Entered Storage 1621 | -8/Storage | Lost 3 parts (3w) 1817 | -8/Storage | Garrison activated, responded to threat 2451 | -8/Storage | Repaired Imp. Treads 2835 | -8/Storage | Assisted by bots powering up and referring to "LRC-V3" 2973 | -8/Storage | Discovered new exit (range 18) 3031 | -8/Storage | Entered Factory 3031 | -7/Factory | Accompanied by 7 allies 3031 | -7/Factory | Evolved 2 slots: Utility x2 3130 | -7/Factory | Discovered new exit (range 16) 3206 | -7/Factory | Entered another Factory area 3206 | -6/Factory | Accompanied by 7 allies 3206 | -6/Factory | Evolved 2 slots: Utility x1, Weapon x1 3333 | -6/Factory | Build established: Commander-Tank 3391 | -6/Factory | Garrison activated, responded to threat 3646 | -6/Factory | Spotted B-75 Beast 3860 | -6/Factory | Build established: Tank 4035 | -6/Factory | Discovered new exit (range 21) 4067 | -6/Factory | Entered another Factory area 4067 | -5/Factory | Evolved 2 slots: Power x1, Propulsion x1 4301 | -5/Factory | Build established: Skirmisher 4551 | -5/Factory | Discovered new exit (range 22) 4584 | -5/Factory | Entered another Factory area 4584 | -4/Factory | Evolved 2 slots: Utility x1, Weapon x1 4640 | -4/Factory | Discovered new exit (range 22) 4755 | -4/Factory | Lost 6 parts (1p3n1u1w) 4844 | -4/Factory | Lost 3 parts (1n2w) 4912 | -4/Factory | Entered Upper Caves 5060 | -4/Upper Caves | A Derelict revealed a hidden shortcut to "reach the base" 5066 | -4/Upper Caves | Entered Warlord 5104 | -4/Warlord | System corruption cleaned by Quarantine Array 5285 | -4/Warlord | Met Warlord 5299 | -4/Warlord | Warlord's base attacked by MAIN.C 5483 | -4/Warlord | Found Signal Generator 5501 | -4/Warlord | Learned Testing stockpile data 5503 | -4/Warlord | Learned 4 Testing zone layouts 5551 | -4/Warlord | Build established: Scavenger-Gunner 5649 | -4/Warlord | Warlord forces counterattacked 5784 | -4/Warlord | Spotted Striker 5785 | -4/Warlord | Spotted Executioner 5815 | -4/Warlord | Destroyed Striker 5853 | -4/Warlord | Lost 3 parts (1n2w) 6118 | -4/Warlord | Build established: Gunner 6225 | -4/Warlord | Spotted Executioner 6268 | -4/Warlord | Spotted Executioner 6326 | -4/Warlord | Spotted Striker 6366 | -4/Warlord | Spotted Striker 6466 | -4/Warlord | Spotted Executioner 6507 | -4/Warlord | Destroyed Executioner 6532 | -4/Warlord | Lost 3 parts (2p1w) 6542 | -4/Warlord | Spotted Executioner 6547 | -4/Warlord | Spotted Executioner 6576 | -4/Warlord | Destroyed 7 combat bots 6587 | -4/Warlord | Core integrity fell below 50% 6605 | -4/Warlord | System corruption reached 10% 6608 | -4/Warlord | Spotted Striker 6614 | -4/Warlord | Core integrity fell below 20% 6616 | -4/Warlord | Destroyed by Executioner with Helical Railgun Last Messages --------------- 06604_ Missile Launcher destroyed. 06604_ Com. Wheel destroyed. 06604_ Core Analyzer destroyed. 06604_ System corrupted by crushing effect (+4). 06604_ System corrupted by crushing effect (+1). 06604_ System corrupted by crushing effect (+5). 06604_ Slammed into B-74 Champion. 06604_ Adv. Heat Sink destroyed. 06604_ Penetrated by Slug. 06607_ Slug penetrates G-67 Veteran. 06608_ Enh. Optical Array destroyed. 06608_ System corrupted by crushing effect (+4). 06608_ Slammed into B-74 Champion. 06608_ Penetrated by Slug. 06610_ Adv. Heat Sink destroyed. 06610_ System corrupted by crushing effect (+4). 06610_ Slug penetrates I-47 Archangel. 06610_ Slug penetrates Wall. 06613_ Penetrated by Slug. 06616_ Slug penetrates Wall. Map ----- +----------------------------------------------------+ | | | | | | | | | | | | | | | ????????????????????????????? | | ?????????????????????######?? | | ?????????????????????# #?? | | ?????????????????????# ### | | ?????????????????????# + | | ????????#####????????# # | | ????????#] #??????####### | | ????????#] ]#?# | | ????????# [#???############# | | ????????# #???##????????? # | | ???#######+### #?????????# | | ???# ^ ^ #?????????# | | ???# ### ###???????# | | ???# """ #??#### ####????# | | ???# """ ## # ###### | | ???# """ ## # ### # | | ???# #; = K%## # | | ???# E =%! %% | | ???#@ # ! ### | | ???# ## | | ???# # # | | ?###+## [ #### # | | ## ! h #???# #### | | # ; !! ##?????##?# | | ## ##?#######?# | | ?# #### ###??#!!"""### | | # #????#????#!! X "## | | #?????????#"" !## | | # ##?????????#""X !#### | | ## ##??????????#""" !#??? | | #####???????????#### ##??? | | ##??????########### ###+##### | | ????????# | | ????????# | | ??#########+################# | | ??# ^ #??????????#""""" | | ??# #??????????#""""" | | ??# #??????????#"" " | | ??# """" #??????????#""" | | ??# """" ^ #??????????#"" " | | ??# """" #??????????#""""" | | ??# """" #??????????#""""" | | ??# #??????????###### | +----------------------------------------------------+ Best States ------------- Heat Dissipation 81 Energy Generation 52 Energy Capacity 980 Matter Stores 300 Matter Capacity 300 Sight Range 22 Robot Scan Range 16 Terrain Scan Range 16 Terrain Scan Density 10 Armor Coverage 600 Evasion (%) 42 Core Analysis 6 Recoil Reduction 10 Item Schematics ----------------- None Robot Schematics ------------------ None Fabricated ------------ Nothing Alien Tech Used ----------------- None Achievements -------------- A Powerful Ally? Challenges ------------ None Game ------ Seed PowerGuidanceAnalyzer Manual? 0 Play Time 01:16:47 Cumulative 47.7 hours Start 2020.09.21 @ 20:46:09 End 2020.09.21 @ 22:38:28 Sessions 3 Manual Loads 0 Difficulty Rogue Special Mode None Game No. 66 Rogue 66 Adventurer 0 Explorer 0 Win Type - Total 0 Types 0/0/0/0/0/0/0/0/0 Lore% 34 Gallery% 41 Achievement% 23 Wizard Run 0 Options --------- ASCII 1 Keyboard 1 Movement Numpad Keybinds 0 Fullscreen 2 Font 18/X11Bold Map View 76x50 Tactical HUD 1 Map Filters NONE Filters NONE Steam 0 RUN: bb609e77-2203-4a30-9b60-6ac4bfafe3cd